[Event "57th Biel Festival MTO 2024"]
[White "Madaminov,Mukhiddin"]
[Black "Sasikiran,Krishnan"]
[Site "Biel"]
[Round "5.3"]
[Annotator "TA"]
[Result "1/2-1/2"]
[Date "2024.07.19"]
[WhiteElo "2517"]
[BlackElo "2581"]
[PlyCount "126"]
[TimeControl "60"]

{[%evp 36,126,0,0,0,-8,-10,-11,-7,-11,0,0,0,-54,22,23,35,0,0,0,0,0,0,0,0,0,0,0,0,0,0,-8,-13,-22,-22,-22,0,0,0,0,0,0,0,0,0,0,0,0,0,0,10,15,8,10,10,8,8,8,8,8,8,8,8,9,9,0,8,0,30,30,44,8,8,8,37,22,22,22,38,33,32,0,0,0,0,0,0,0,0,0,0,0,0]} 1. e4 {[%emt 0:1:22]} c5 {[%emt 0:0:18]} 2. Nf3 {[%emt 0:0:38]} d6 {[%emt 0:0:11]} 3. Bb5+ {[%emt 0:0:54]} Nd7 {[%emt 0:0:21]} 4. O-O {[%emt 0:0:36]} a6 {[%emt 0:1:20]} 5. Bd3 {[%emt 0:0:10]} Ngf6 {[%emt 0:1:47]} 6. Re1 {[%emt 0:0:31] B51: Sicilian: Moscow Variation (3 Bb5+) without 3...Bd7.} g6 {[%emt 0:1:35]} 7. c3 {[%emt 0:0:37]} Bg7 {[%emt 0:0:30]} 8. Bc2 {[%emt 0:0:22]} c4 {[%emt 0:1:25]} 9. b3 {[%emt 0:2:33]} b5 {[%emt 0:2:21]} 10. bxc4 {[%emt 0:3:54]} bxc4 {[%emt 0:0:42]} 11. Na3 {[%emt 0:0:14]} Nb6 {[%emt 0:2:10]} 12. Qe2 {[%emt 0:0:30]} Bg4 {[%emt 0:1:26]} 13. Nxc4 {[%emt 0:8:27]} Bxf3 {[%emt 0:0:48]} 14. gxf3 {[%emt 0:0:12]} Nxc4 {[%emt 0:0:29]} 15. Ba4+ $146 {[%emt 0:10:43]} ({Predecessor:} 15. Qxc4 O-O 16. d4 Rc8 17. Qd3 Nh5 18. Be3 e5 19. Qd2 Qf6 20. Bd1 Nf4 21. Kh1 {½-½ Ivanov,V (2268)-Roberts,A (2273) GER CCM-E/02-I email 2018} )Nd7 {[%emt 0:0:32]} 16. Qxc4 {[%emt 0:0:29]} O-O {[%emt 0:0:13]} 17. Bxd7 {[%emt 0:6:35]} Qxd7 {[%emt 0:1:23]} 18. d4 {[%emt 0:3:28]} Rfc8 {[%emt 0:18:51]} 19. Qd3 {[%emt 0:0:45]} Qb5 {[%emt 0:4:59]} 20. Qxb5 {[%emt 0:2:49]} axb5 {[%emt 0:0:5]} 21. Bb2 {[%emt 0:0:11]} Ra4 {[%emt 0:7:10]} 22. a3 {[%emt 0:4:0]} e5 {[%emt 0:7:28]} 23. Red1 {[%emt 0:2:11]} h5 {[%emt 0:7:44]} 24. Kg2 {[%emt 0:4:49]} (24. Rab1 $11 )h4 {[%emt 0:8:3]} (24... exd4 $1 $15 25. cxd4 Rc2 )25. Rd2 {[%emt 0:2:9]} Bh6 {[%emt 0:2:40]} 26. Re2 {[%emt 0:0:23]} Bf4 {[%emt 0:3:5]} 27. h3 {[%emt 0:4:43]} Kf8 {[%emt 0:2:56]} 28. Rb1 {[%emt 0:2:9]} Ke7 {[%emt 0:3:14]} 29. dxe5 {[%emt 0:2:6]} dxe5 {[%emt 0:4:28]} 30. Rd1 {[%emt 0:2:20]} Rd8 {[%emt 0:4:13]} 31. Ree1 {[%emt 0:1:41]} Bd2 {[%emt 0:1:58]} 32. Re2 {[%emt 0:2:28]} Bf4 {[%emt 0:0:56]} 33. Rxd8 {[%emt 0:11:24]} Kxd8 {[%emt 0:0:4]} 34. Re1 {[%emt 0:0:3]} Kc7 {[%emt 0:2:1]} 35. Rd1 {[%emt 0:2:46]} f5 {[%emt 0:1:30]} 36. exf5 {[%emt 0:5:45]} gxf5 {[%emt 0:0:52]} 37. Rd5 {[%emt 0:0:47]} Kc6 {[%emt 0:1:28]} 38. Rd8 {[%emt 0:0:6]} Ra7 {[%emt 0:1:57]} 39. Kf1 {[%emt 0:0:46]} Rg7 {[%emt 0:4:26]} 40. Rc8+ {[%emt 0:7:4]} Kb7 {[%emt 0:8:44]} 41. Rd8 {[%emt 0:50:20]} Kc6 {[%emt 0:12:27]} 42. Rc8+ {[%emt 0:0:0]} Kd5 {[%emt 0:13:28]} 43. a4 {[%emt 0:0:0]} bxa4 {[%emt 0:2:45]} 44. c4+ {[%emt 0:0:0]} Ke6 {[%emt 0:1:20]} 45. Rc6+ {[%emt 0:0:0]} Kf7 {[%emt 0:0:25]} 46. Ra6 {[%emt 0:0:0]} Rg8 {[%emt 0:0:35]} 47. Rxa4 {[%emt 0:0:0]} Rb8 {[%emt 0:0:36]} 48. Ba3 {[%emt 0:0:0]} Rb3 {[%emt 0:3:57]} 49. Kg2 {[%emt 0:0:0]} Rc3 {[%emt 0:0:34]} 50. c5 {[%emt 0:0:0]} Rc2 {[%emt 0:0:59]} 51. Kf1 {[%emt 0:0:0]} Ke6 {[%emt 0:6:48]} 52. Ra6+ {[%emt 0:0:0]} Kd5 {[%emt 0:0:42]} 53. Rf6 {[%emt 0:0:0]} Rc3 {[%emt 0:4:46]} 54. Bb4 {[%emt 0:0:0]} Rc1+ {[%emt 0:2:10]} 55. Kg2 {[%emt 0:0:0]} Kc4 {[%emt 0:0:31]} 56. Ba5 {[%emt 0:0:0]} Kb5 {[%emt 0:3:27]} 57. Bd8 {[%emt 0:0:0]} Rc2 $1 {[%emt 0:0:26]} 58. Rb6+ {[%emt 0:0:0]} (58. Rxf5 Bg3 $11 (58... Kxc5 $2 {loses.} 59. Bg5 $18 ))(58. c6 {feels hotter.} Be3 59. Kf1 Rc1+ 60. Ke2 )Kxc5 {[%emt 0:1:21]} 59. Rb7 {[%emt 0:0:0]} Kd5 {[%emt 0:1:41]} 60. Bxh4 {[%emt 0:0:0]} Be3 {[%emt 0:0:55]} 61. Rd7+ {[%emt 0:19:29]} (61. Rf7 $5 f4 $8 62. Rf8 $11 )Ke6 {[%emt 0:17:10]} 62. Re7+ {[%emt 0:0:5]} Kd5 {[%emt 0:1:44]} 63. Kf1 {[%emt 0:0:37]} Bd4 {[%emt 0:1:16]} 1/2-1/2

[Event "57th Biel Festival MTO 2024"]
[White "Moiseenko,Alexander"]
[Black "Koustav Chatterjee"]
[Site "Biel"]
[Round "5.4"]
[Annotator "TA"]
[Result "1/2-1/2"]
[Date "2024.07.19"]
[WhiteElo "2560"]
[BlackElo "2525"]
[PlyCount "34"]
[TimeControl "60"]

{[%evp 9,34,17,25,0,0,7,0,-7,23,0,0,0,0,0,0,0,0,0,0,0,0,0,0,0,17,0,0]} 1. d4 {[%emt 0:1:20]} Nf6 {[%emt 0:0:8]} 2. c4 {[%emt 0:0:12]} e6 {[%emt 0:0:6][%cal Be7e6,Be6d5,Bd5e4][%mdl 32]} 3. Nf3 {[%emt 0:0:41]} d5 {[%emt 0:0:17]} 4. Nc3 {[%emt 0:0:42]} Bb4 {[%emt 0:0:17]} 5. cxd5 {[%emt 0:4:39]} exd5 {[%emt 0:0:6]} 6. Bf4 {[%emt 0:0:3]} Ne4 {[%emt 0:4:12]} 7. Rc1 {[%emt 0:0:8]} Nc6 {[%emt 0:0:7]} 8. Nd2 {[%emt 0:1:39]} Nxd4 {[%emt 0:40:20]} 9. Ncxe4 {[%emt 0:9:41]} dxe4 {[%emt 0:0:17] The position is equal.} 10. Qa4+ {[%emt 0:13:46]} (10. Rxc7 $2 {is the wrong capture.} e3 11. fxe3 Nc6 $19 )Nc6 {[%emt 0:1:55]} 11. Rxc6 {[%emt 0:2:55]} Bxd2+ $1 {[%emt 0:0:23]} 12. Bxd2 {[%emt 0:0:3]} bxc6 {[%emt 0:0:10]} 13. Qxc6+ {[%emt 0:0:21]} Bd7 {[%emt 0:0:8]} 14. Qxe4+ {[%emt 0:0:4]} Be6 {[%emt 0:0:14]} 15. Qc6+ {[%emt 0:13:12]} Bd7 {[%emt 0:0:40]} 16. Qe4+ {[%emt 0:0:20]} Be6 {[%emt 0:1:32] Black is weak on the dark squares} 17. Qc6+ {[%emt 0:0:10][%mdl 1024] White has compensation.} Bd7 {[%emt 0:2:20] Not much happened in this game.   Weighted Error Value: White=0.09 (flawless) /Black=0.04 (flawless) .  Inaccurate:     	---       	Black=1      OK:         	White=7     	Black=6      Best:        	---       	Black=2      Strong:       	---       	Black=1} 1/2-1/2

[Event "57th Biel Festival MTO 2024"]
[White "Nesterov,Arseniy"]
[Black "Sokolovsky,Yahli"]
[Site "Biel"]
[Round "5.5"]
[Annotator "TA"]
[Result "1/2-1/2"]
[Date "2024.07.19"]
[WhiteElo "2609"]
[BlackElo "2492"]
[PlyCount "71"]
[TimeControl "60"]

{[%evp 12,71,24,20,30,26,23,26,20,22,12,13,18,23,19,33,23,14,14,14,12,18,19,19,15,15,22,0,28,34,29,27,34,36,40,22,16,6,12,8,21,21,62,47,47,38,56,49,54,54,46,45,45,34,43,25,27,0,0,0,0,0]} 1. d4 {[%emt 0:3:3]} Nf6 {[%emt 0:0:15]} 2. c4 {[%emt 0:0:4]} e6 {[%emt 0:0:0]} 3. Nc3 {[%emt 0:0:4]} d5 {[%emt 0:0:5]} 4. cxd5 {[%emt 0:0:5]} exd5 {[%emt 0:0:4]} 5. Bg5 {[%emt 0:0:5][%cal Bc1g5,Bg5h4,Bh4g3][%mdl 32]} Be7 {[%emt 0:0:26]} 6. e3 {[%emt 0:0:7]} h6 {[%emt 0:0:19]} 7. Bh4 {[%emt 0:0:6]} Bg4 {[%emt 0:0:6]} 8. Qc2 {[%emt 0:0:5]} O-O {[%emt 0:0:46]} 9. h3 {[%emt 0:0:4]} Be6 {[%emt 0:0:26] White has an edge.} 10. Nf3 {[%emt 0:0:6]} Ne8 {[%emt 0:0:14]} 11. Bg3 {[%emt 0:0:5]} Bd6 {[%emt 0:0:49]} 12. Ne5 {[%emt 0:0:6]} Nc6 {[%emt 0:0:30]} 13. Nxc6 {[%emt 0:0:31]} bxc6 {[%emt 0:0:7]} 14. Bxd6 {[%emt 0:0:4]} cxd6 {[%emt 0:0:29]} 15. Be2 {[%emt 0:0:10]} Qg5 {[%emt 0:3:12]} 16. Bf3 {[%emt 0:6:53]} Rb8 {[%emt 0:16:6]} 17. Ne2 {[%emt 0:4:10]} Rb6 {[%emt 0:11:0]} 18. Nf4 {[%emt 0:1:20]} Bf5 {[%emt 0:0:50]} 19. Qc3 {[%emt 0:3:39]} Be4 {[%emt 0:7:47]} 20. Bxe4 {[%emt 0:12:15]} dxe4 {[%emt 0:0:5]} 21. O-O {[%emt 0:0:7]} Nf6 {[%emt 0:3:46]} 22. Qa3 {[%emt 0:6:24][%csl LRa7,LRd6]} Nd5 {[%emt 0:23:28]} 23. Qxa7 {[%emt 0:8:58] [#] Nxd5 would now be deadly.} (23. Nxd5 {simplifies} Qxd5 24. Rfc1 Ra8 25. b3 )Rxb2 {[%emt 0:1:0]} 24. Qa3 {[%emt 0:1:24]} (24. Nxd5 {simplifies} Qxd5 25. Rfb1 Rxb1+ 26. Rxb1 c5 27. Rb5 )Rfb8 {[%emt 0:8:32]} 25. Qxd6 {[%emt 0:2:37]} Nxf4 {[%emt 0:0:54]} (25... Rd8 {is interesting.} 26. Qxc6 Nxf4 27. exf4 Qxf4 28. Qc4 Qd6 )26. exf4 {[%emt 0:3:27]} (26. Qxf4 {simplifies} Qxf4 27. exf4 Rd2 28. a4 )Qd5 {[%emt 0:0:14]} 27. Qxd5 {[%emt 0:0:21]} cxd5 $14 {[%emt 0:0:5][%mdl 4096] Endgame. KRR-KRR} 28. a4 {[%emt 0:0:27]} Ra8 {[%emt 0:15:37]} 29. Rfc1 {[%emt 0:1:25]} Rb4 {[%emt 0:3:12][%csl LRa4,LRd4]} 30. a5 {[%emt 0:0:30]} Ra7 {[%emt 0:0:24]} 31. a6 {[%emt 0:19:2]} Rxd4 {[%emt 0:0:11]} 32. Rcb1 {[%emt 0:7:24] [#] Threatens to win with Rb7.} Kh7 $1 {[%emt 0:0:14]} 33. Rb5 {[%emt 0:3:40]} Rd2 {[%emt 0:0:39]} 34. Kf1 {[%emt 0:3:18]} Rc7 {[%emt 0:6:10] Hoping for ...Rcc2.} 35. a7 {[%emt 0:8:21]} Rcc2 {[%emt 0:0:5]} 36. a8=Q {[%emt 0:0:25] Weighted Error Value: White=0.05 (flawless) /Black=0.06 (flawless) .  Inaccurate:     	White=1     	Black=2      OK:         	White=12    	Black=11     Best:        	---       	Black=1      Strong:       	---       	Black=1} (36. a8=B Rxf2+ 37. Kg1 (37. Ke1 {is a self mate.} Rxg2 38. Kd1 Rcf2 39. Ke1 e3 40. Bxd5 Rg1# )Rxg2+ 38. Kh1 Rh2+ 39. Kg1 Rcg2+ (39... Rxh3 40. Bxd5 Rg3+ 41. Kf1 $14 )40. Kf1 e3 $19 )1/2-1/2

[Event "57th Biel Festival MTO 2024"]
[White "Holzke,Frank"]
[Black "Ganguly,Surya Shekhar"]
[Site "Biel"]
[Round "5.6"]
[Annotator "TA"]
[Result "1/2-1/2"]
[Date "2024.07.19"]
[WhiteElo "2450"]
[BlackElo "2575"]
[PlyCount "59"]
[TimeControl "60"]

{[%evp 18,59,20,0,14,15,25,18,39,-10,-7,-25,0,0,0,0,0,-37,25,-10,70,72,78,81,87,67,70,64,95,69,58,53,27,0,62,61,86,29,55,0,0,0,18,0]} 1. e4 {[%emt 0:4:4]} e6 {[%emt 0:0:18]} 2. d4 {[%emt 0:0:17]} d5 {[%emt 0:0:5]} 3. Nc3 {[%emt 0:0:13]} Bb4 {[%emt 0:0:16]} 4. e5 {[%emt 0:0:14]} c5 {[%emt 0:0:7]} 5. a3 {[%emt 0:0:7]} Bxc3+ {[%emt 0:0:4]} 6. bxc3 {[%emt 0:0:8]} Ne7 {[%emt 0:0:4]} 7. Qg4 {[%emt 0:0:28]} Qc7 {[%emt 0:0:18]} 8. Bd3 {[%emt 0:0:17]} c4 {[%emt 0:0:18]} 9. Be2 {[%emt 0:0:30]} Nf5 {[%emt 0:0:5]} 10. Nf3 {[%emt 0:5:12]} Nc6 {[%emt 0:2:15][%cal Bb8c6,Bc6e7,Be7f5][%mdl 32]} 11. O-O {[%emt 0:0:42]} Bd7 {[%emt 0:0:43]} 12. Nh4 {[%emt 0:4:24]} Nce7 {[%emt 0:0:29]} 13. Bg5 {[%emt 0:5:44]} (13. a4 $14 )Nxh4 {[%emt 0:5:52]} 14. Qxh4 {[%emt 0:4:24]} Nf5 {[%emt 0:0:23]} 15. Qh3 {[%emt 0:1:3]} Ba4 {[%emt 0:0:39]} 16. Ra2 {[%emt 0:3:31]} h6 {[%emt 0:5:37]} 17. f4 {[%emt 0:5:1]} Rg8 {[%emt 0:12:31]} ({Black should try} 17... Kd7 $15 18. Bh4 Raf8 )18. Bh4 {[%emt 0:7:35]} (18. g4 {simplifies} Nxd4 19. cxd4 hxg5 20. fxg5 O-O-O 21. Qg3 )g5 {[%emt 0:0:32]} (18... Rh8 $11 )19. fxg5 $14 {[%emt 0:2:16] [#] Rxf5 is the strong threat.} Nxh4 {[%emt 0:8:7]} (19... hxg5 $2 20. Bxg5 Qa5 21. Bf6 $18 )20. Qxh4 {[%emt 0:0:38]} hxg5 {[%emt 0:0:9]} 21. Qh7 {[%emt 0:6:2]} Rf8 {[%emt 0:0:12]} 22. Qg7 {[%emt 0:0:28]} Qa5 {[%emt 0:4:18]} 23. Bh5 {[%emt 0:7:27][%cal Rh5f7] White has more active pieces. The black rooks are passive.} O-O-O {[%emt 0:0:34]} 24. Rf3 {[%emt 0:2:46]} (24. Rxf7 Rg8 25. Qf6 Qxc3 $17 )(24. Qxg5 Qxc3 25. Qf4 Kb8 $11 (25... Bxc2 $2 26. Rc1 $18 ))Qb6 {[%emt 0:1:54]} 25. Rf1 {[%emt 0:1:12] Prevents Qb1} (25. Rxf7 $2 Qb1+ 26. Kf2 Rxf7+ (26... Qxa2 27. Rxf8 Qxc2+ 28. Be2 $11 )27. Qxf7 Bd7 $19 (27... Qxa2 $2 28. Qxe6+ Kb8 29. Qf6 $19 ))Qa5 $1 {[%emt 0:0:27]} 26. Bxf7 {[%emt 0:2:27]} (26. Rxf7 Rg8 27. Qf6 Qxc3 $17 )Kb8 {[%emt 0:2:5]} 27. Rf3 {[%emt 0:2:9]} ({And not} 27. Qxg5 Qxc3 28. h4 Qxd4+ 29. Kh2 Rh8 $17 )(27. Bxe6 $6 Rxf1+ 28. Kxf1 Qb6 $11 (28... Qxc3 29. Bxd5 Bc6 30. Bxc6 $16 ))Qb6 {[%emt 0:0:44]} 28. Rf1 {[%emt 0:1:51] Dodges Qb1} (28. Qxg5 $2 Qb1+ 29. Rf1 Qxa2 $19 )Qa5 {[%emt 0:2:42]} 29. Rf3 {[%emt 0:0:40]} ({Much weaker is} 29. Qxg5 Qxc3 30. h4 Qxd4+ 31. Kh2 Rh8 $17 )Qb6 {[%emt 0:0:56]} 30. Rf1 {[%emt 0:0:21] Against Qb1.   Weighted Error Value: White=0.16 (very precise) /Black=0.14 (very precise) .  Mistake:       	White=1     	Black=2      Inaccurate:     	White=3     	Black=1      OK:         	White=6     	Black=6      Best:        	White=1     	Black=3      Strong:       	---       	Black=1} (30. Qxg5 $2 {perishes.} Qb1+ 31. Rf1 Qxa2 $19 )1/2-1/2

[Event "57th Biel Festival MTO 2024"]
[White "Razafindratsima,Timothe"]
[Black "Harsha Bharathakoti"]
[Site "Biel"]
[Round "5.7"]
[Annotator "TA"]
[Result "0-1"]
[Date "2024.07.19"]
[WhiteElo "2445"]
[BlackElo "2569"]
[PlyCount "104"]
[TimeControl "60"]

{[%evp 9,103,7,34,29,53,12,22,14,27,23,27,25,18,26,22,15,27,-14,-5,-26,-39,-36,0,0,0,-35,-27,-68,0,0,0,0,0,0,0,0,0,0,18,0,0,0,0,-25,14,16,41,0,0,0,0,0,0,0,0,0,0,0,0,0,0,-36,-32,0,0,-198,-225,-125,-57,-294,-260,-29952,-29954,-29961,-29945,-29955,-29960,-29957,-29964,-29967,-29967,-29968,-29967,-29967,-29970,-29971,-29972,-29973,-29974,-29974,-29975,-29963,-8,-8,-8,-29984]} 1. e4 {[%emt 0:0:2]} e5 {[%emt 0:9:30]} 2. Nf3 {[%emt 0:0:5]} Nc6 {[%emt 0:0:3]} 3. Bc4 {[%emt 0:0:20]} Bc5 {[%emt 0:0:7]} 4. d3 {[%emt 0:0:13]} d6 {[%emt 0:5:20]} 5. c3 {[%emt 0:0:16]} Bb6 {[%emt 0:3:12]} 6. a4 {[%emt 0:4:30]} a5 {[%emt 0:13:3]} 7. Nbd2 {[%emt 0:4:54]} h6 {[%emt 0:10:43]} 8. Bb5 {[%emt 0:3:25] The position is equal.} Nge7 {[%emt 0:8:53]} 9. Nc4 {[%emt 0:2:1]} Bc5 {[%emt 0:16:17] [#]} 10. Nxa5 $1 {[%emt 0:26:5]} Rxa5 {[%emt 0:1:5]} 11. b4 {[%emt 0:0:1]} Bxb4 {[%emt 0:0:9]} 12. cxb4 {[%emt 0:0:3]} Ra8 {[%emt 0:0:6]} 13. Bc4 {[%emt 0:8:35]} Bg4 {[%emt 0:7:20][%cal Od6d5]} 14. h3 {[%emt 0:21:11]} Bxf3 {[%emt 0:2:31]} 15. Qxf3 {[%emt 0:0:2]} O-O {[%emt 0:0:7]} 16. Qg4 {[%emt 0:0:45]} Kh7 {[%emt 0:10:16][%cal Of7f5]} 17. O-O {[%emt 0:15:44]} f5 {[%emt 0:3:24]} 18. Qd1 {[%emt 0:4:0]} f4 {[%emt 0:2:30]} (18... Nxb4 $15 19. Ba3 Nbc6 )19. b5 $11 {[%emt 0:2:21]} Nd4 {[%emt 0:0:5]} 20. Bb2 {[%emt 0:0:1]} f3 {[%emt 0:3:7]} 21. g3 {[%emt 0:0:1]} Qd7 {[%emt 0:1:55]} 22. Kh2 {[%emt 0:0:10]} c6 {[%emt 0:0:3]} 23. bxc6 {[%emt 0:2:58]} bxc6 {[%emt 0:0:9]} 24. Bxd4 {[%emt 0:0:52]} exd4 {[%emt 0:0:4]} 25. a5 {[%emt 0:0:31][%cal Ba4a5,Ba5a6,Ba6b7][%mdl 32]} Ng6 {[%emt 0:1:11]} 26. Qb3 {[%emt 0:4:35]} Ne5 {[%emt 0:2:5]} 27. a6 {[%emt 0:0:27]} Qe7 {[%emt 0:8:17]} 28. Qb7 {[%emt 0:2:37]} Qxb7 {[%emt 0:1:39]} 29. axb7 {[%emt 0:0:1]} Rxa1 {[%emt 0:0:50]} 30. Rxa1 {[%emt 0:0:1][%mdl 4096] Endgame. Ra8 would now be deadly. KRB-KRN} Rb8 {[%emt 0:0:4]} 31. Rb1 {[%emt 0:2:22]} Kg6 {[%emt 0:0:59]} 32. g4 {[%emt 0:2:0]} Kf6 {[%emt 0:0:16] And now ...Nxc4 would win.} 33. Kg3 {[%emt 0:0:6]} g5 {[%emt 0:0:52]} 34. Ba6 {[%emt 0:3:2]} Ke7 {[%emt 0:0:15]} 35. Rb4 {[%emt 0:2:35]} c5 {[%emt 0:0:4]} 36. Rb3 {[%emt 0:0:25]} Kd7 {[%emt 0:0:52]} 37. Bc4 $2 {[%emt 0:0:28] [#]} (37. Rb1 $11 )Nxc4 $1 $19 {[%emt 0:0:56]} 38. dxc4 {[%emt 0:0:1][%cal Oh3h4] [#]} Kc6 {[%emt 0:0:39]} (38... Kc7 $1 $17 39. Ra3 Rxb7 (39... Kxb7 40. Kxf3 Kc7 41. Ra7+ Rb7 42. Ra3 $17 ))39. Kxf3 $2 {[%emt 0:1:3]} ({Only move:} 39. Rxf3 $15 Rxb7 40. Rf6 )Rxb7 {[%emt 0:0:3]} 40. Rxb7 {[%emt 0:0:55]} (40. Ra3 $19 )Kxb7 $15 {[%emt 0:0:4] KP-KP} 41. Kg3 {[%emt 0:23:5]} Kc7 {[%emt 0:2:13]} 42. Kf3 {[%emt 0:0:22]} Kd7 {[%emt 0:2:35]} 43. Kg3 {[%emt 0:0:5]} Ke7 {[%emt 0:13:27]} 44. Kf3 {[%emt 0:1:4]} Ke6 {[%emt 0:2:3]} 45. Kg2 {[%emt 0:3:10]} Ke5 {[%emt 0:0:12]} 46. Kf3 {[%emt 0:0:5]} d3 {[%emt 0:6:38]} 47. Ke3 {[%emt 0:2:59] [#]} d2 $1 {[%emt 0:0:14][%mdl 512]} 48. f4+ {[%emt 0:0:58]} (48. Ke2 Kd4 )gxf4+ {[%emt 0:0:6]} 49. Kxd2 {[%emt 0:0:1]} Kxe4 {[%emt 0:0:7]} 50. h4 {[%emt 0:0:8]} f3 $2 {[%emt 0:0:51]} (50... Ke5 {mates} 51. Ke2 d5 52. cxd5 Kxd5 53. h5 Ke5 (53... Ke4 54. g5 $11 )54. Kf3 c4 55. g5 hxg5 56. h6 Kf6 57. h7 Kg7 58. Kf2 g4 (58... Kxh7 59. Kf3 c3 60. Ke2 g4 61. Ke1 g3 62. Ke2 g2 63. Kf2 c2 64. Kg1 f3 65. Kf2 c1=Q 66. Kxf3 g1=Q 67. Ke4 Qge3+ 68. Kf5 Qf1+ 69. Kg4 Qfh3# )59. Kf1 Kxh7 60. Kf2 c3 61. Ke2 g3 (61... f3+ 62. Ke3 c2 63. Kd2 g3 64. Kxc2 f2 65. Kd1 f1=Q+ 66. Kd2 g2 67. Ke3 g1=Q+ 68. Ke4 Qc4+ 69. Ke5 Qg7+ 70. Kf5 Qcg4# )62. Ke1 g2 63. Ke2 g1=Q (63... g1=R 64. Kd3 f3 65. Kxc3 f2 66. Kd4 f1=Q 67. Ke4 Qc4+ 68. Ke3 Rd1 69. Kf2 Qd3 70. Kg2 Rd2+ 71. Kh1 Qf1# )64. Kd3 Qe3+ 65. Kc2 Qd2+ 66. Kb3 c2 67. Kc4 c1=Q+ (67... c1=B 68. Kc5 f3 69. Kb6 Qd6+ 70. Kb5 f2 71. Kc4 f1=Q+ 72. Kb3 Qfd3+ 73. Ka4 Q6a3# )68. Kb5 Qdb2+ 69. Ka6 Qca1# )51. g5 $11 {[%emt 0:3:13]} hxg5 {[%emt 0:0:4]} (51... f2 $5 52. Ke2 $8 hxg5 53. hxg5 Kf5 54. Kxf2 Kg6 $11 (54... Kxg5 55. Ke3 $11 ))52. h5 {[%emt 0:0:43][%mdl 8192]} (52. hxg5 $11 Kf5 53. g6 Kxg6 54. Ke3 Kg5 55. Kxf3 Kf5 56. Ke3 Ke5 57. Kd3 Kf4 58. Kd2 Ke4 59. Kc3 Ke3 60. Kb2 Kd4 61. Kc1 Kxc4 62. Kd2 Kb3 63. Kd1 c4 64. Kc1 Kc3 65. Kd1 Kd3 (65... d5 {is a self mate.} 66. Ke2 d4 67. Kd1 Kd3 68. Ke1 Ke3 69. Kd1 d3 70. Kc1 c3 71. Kb1 Ke2 72. Ka2 d2 73. Kb3 d1=Q+ 74. Kc4 c2 75. Kc5 c1=Q+ 76. Kb4 Qd4+ 77. Kb5 Qcc5+ 78. Ka6 Qb6# )66. Ke1 c3 67. Kd1 d5 68. Kc1 c2 69. Kb2 Kd2 (69... c1=Q+ {leads to mate.} 70. Kxc1 Kc3 71. Kb1 d4 72. Kc1 d3 73. Kd1 d2 74. Ke2 Kc2 75. Kf3 d1=Q+ 76. Kf4 Qh5 77. Kg3 Qf5 78. Kh4 Qg6 79. Kh3 Kd3 80. Kh4 Ke3 81. Kh3 Kf3 82. Kh4 Qh6# )70. Kb3 c1=Q (70... c1=B {gets mated.} 71. Kb4 d4 72. Kc5 Ke3 73. Kd6 Ba3+ 74. Kd7 d3 75. Kc7 d2 76. Kd7 d1=Q+ 77. Kc7 Qd6+ 78. Kb7 Bc5 79. Kc8 Qc6+ 80. Kb8 Qd7 81. Ka8 Qc8# )71. Kb4 Qc4+ (71... d4 72. Kb5 Ke1 73. Kb4 d3 74. Kb5 d2 75. Kb4 d1=Q 76. Ka5 Qb3 77. Ka6 Qca3# )72. Ka5 Qc6 73. Kb4 Qb6+ 74. Ka4 Kc3 75. Ka3 Qb3# )Kf5 {[%emt 0:0:5] Weighted Error Value: White=0.37/Black=0.17 (very precise) .  Loses game:     	White=3     	---        Mistake:       	White=1     	Black=2      Inaccurate:     	White=7     	Black=2      OK:         	White=11    	Black=20     Best:        	White=1     	Black=1      Strong:       	---       	Black=1} 0-1

[Event "57th Biel Festival MTO 2024"]
[White "Gan-Erdene,Sugar"]
[Black "Gavrilescu,David"]
[Site "Biel"]
[Round "5.8"]
[Annotator "TA"]
[Result "1/2-1/2"]
[Date "2024.07.19"]
[WhiteElo "2424"]
[BlackElo "2538"]
[PlyCount "26"]
[TimeControl "60"]

{[%evp 10,26,21,14,16,18,9,19,12,0,20,-12,-20,-45,28,6,25,-7,80]} 1. e4 {[%emt 0:0:41]} c5 {[%emt 0:1:53]} 2. Nf3 {[%emt 0:0:15]} d6 {[%emt 0:1:12]} 3. d4 {[%emt 0:0:34]} cxd4 {[%emt 0:0:35]} 4. Nxd4 {[%emt 0:0:6]} Nf6 {[%emt 0:0:24]} 5. Nc3 {[%emt 0:0:7]} a6 {[%emt 0:0:28]} 6. Nb3 {[%emt 0:3:38]} e6 {[%emt 0:1:52]} 7. g4 {[%emt 0:0:22]} b5 {[%emt 0:1:10]} 8. Bg2 {[%emt 0:0:55][%cal Oe4e5] Threatens to win with e5!} Nfd7 {[%emt 0:6:48]} 9. g5 {[%emt 0:19:54]} Bb7 {[%emt 0:9:13]} 10. f4 {[%emt 0:0:35]} h6 {[%emt 0:6:44]} 11. h4 {[%emt 0:4:3][%cal Og5g6]} Be7 {[%emt 0:4:33]} (11... hxg5 $15 12. hxg5 Rxh1+ 13. Bxh1 b4 )12. Be3 {[%emt 0:1:35]} Nc6 {[%emt 0:4:11]} 13. Qe2 {[%emt 0:18:34]} Rc8 {[%emt 0:11:35] Weighted Error Value: White=0.17 (very precise) /Black=0.22 (precise) .  Mistake:       	---       	Black=2      Inaccurate:     	White=2     	---        OK:         	---       	Black=2} (13... hxg5 $11 14. hxg5 Rxh1+ 15. Bxh1 b4 )1/2-1/2

[Event "57th Biel Festival MTO 2024"]
[White "Xiao,Tong"]
[Black "Hafiz,Arif Abdul"]
[Site "Biel"]
[Round "5.9"]
[Annotator "ChessBase"]
[Result "1/2-1/2"]
[Date "2024.07.19"]
[WhiteElo "2518"]
[BlackElo "2367"]
[PlyCount "68"]
[TimeControl "60"]

1. e4 {[%emt 0:0:2]} e5 {[%emt 0:1:39]} 2. Nf3 {[%emt 0:0:28]} Nc6 {[%emt 0:0:4]} 3. Bb5 {[%emt 0:0:9]} a6 {[%emt 0:0:9]} 4. Ba4 {[%emt 0:0:11]} b5 {[%emt 0:0:5]} 5. Bb3 {[%emt 0:0:10]} Na5 {[%emt 0:0:4]} 6. O-O {[%emt 0:3:16]} d6 {[%emt 0:0:8]} 7. d4 {[%emt 0:1:37]} exd4 {[%emt 0:0:15]} 8. Nxd4 {[%emt 0:1:17]} Bb7 {[%emt 0:1:7]} 9. Bd2 {[%emt 0:2:51]} Nxb3 {[%emt 0:1:14]} 10. Nxb3 {[%emt 0:0:11]} Be7 {[%emt 0:0:14]} 11. Re1 {[%emt 0:2:16]} Nf6 {[%emt 0:8:8]} 12. Na5 {[%emt 0:1:11]} Rb8 {[%emt 0:0:29]} 13. Nxb7 {[%emt 0:1:57]} Rxb7 {[%emt 0:0:2]} 14. Qf3 {[%emt 0:3:21]} Rb8 {[%emt 0:1:9]} 15. Nc3 {[%emt 0:3:57]} O-O {[%emt 0:1:19]} 16. Rad1 {[%emt 0:5:30]} Re8 {[%emt 0:6:11]} 17. Bf4 {[%emt 0:4:57]} Qc8 {[%emt 0:1:39]} 18. Ne2 {[%emt 0:16:50]} Nd7 {[%emt 0:3:12]} 19. Bc1 {[%emt 0:10:43]} Qb7 {[%emt 0:8:3]} 20. Nf4 {[%emt 0:1:50]} Bf8 {[%emt 0:4:35]} 21. Qh3 {[%emt 0:3:2]} Nf6 {[%emt 0:13:37]} 22. f3 {[%emt 0:0:5]} Rbd8 {[%emt 0:12:57]} 23. b3 {[%emt 0:3:58]} c6 {[%emt 0:7:33]} 24. Bb2 {[%emt 0:1:8]} Qe7 {[%emt 0:2:22]} 25. Qh4 {[%emt 0:5:46]} Nd5 {[%emt 0:8:58]} 26. Qxe7 {[%emt 0:0:18]} Nxe7 {[%emt 0:0:1]} 27. Bc3 {[%emt 0:7:38]} Ng6 {[%emt 0:5:18]} 28. Nh5 {[%emt 0:1:0]} Ne5 {[%emt 0:3:24]} 29. Re2 {[%emt 0:1:56]} f5 {[%emt 0:6:26]} 30. Rde1 {[%emt 0:3:31]} fxe4 {[%emt 0:0:47]} 31. Rxe4 {[%emt 0:1:55]} Kf7 {[%emt 0:12:42]} 32. f4 {[%emt 0:0:15]} Ng4 {[%emt 0:0:45]} 33. Rxe8 {[%emt 0:1:45]} Rxe8 {[%emt 0:0:1]} 34. Rxe8 {[%emt 0:0:7]} Kxe8 {[%emt 0:18:54]} 1/2-1/2